[Event "Titled Tuesday Blitz January 31 Late 2023"]
[White "Rakhmatullaev, Almas"]
[Black "Shapiro, Viktor"]
[WhiteFideId "14205793"]
[BlackFideId "4175700"]
[WhiteElo "2275"]
[BlackElo "2192"]
[Result "1-0"]
[Round "09"]
[TimeControl "180+2"]
[Date "2023.01.31"]
[WhiteClock "0:00:04"]
[BlackClock "0:00:03"]

1. e4 {[%clk 0:03:00]}  Nf6 {[%clk 0:03:00]} 2. e5 {[%clk 0:02:58]}  Nd5 {[%clk 0:03:00]} 3. d4 {[%clk 0:02:59]}  d6 {[%clk 0:03:00]} 4. Nf3 {[%clk 0:02:59]}  Bg4 {[%clk 0:03:00]} 5. Bc4 {[%clk 0:02:56]}  dxe5 {[%clk 0:03:00]} 6. dxe5 {[%clk 0:02:54]}  e6 {[%clk 0:03:00]} 7. h3 {[%clk 0:02:54]}  Bh5 {[%clk 0:03:00]} 8. O-O {[%clk 0:02:53]}  Be7 {[%clk 0:02:58]} 9. c3 {[%clk 0:02:50]}  O-O {[%clk 0:02:57]} 10. Nbd2 {[%clk 0:02:47]}  Nc6 {[%clk 0:02:54]} 11. Re1 {[%clk 0:02:45]}  Bg6 {[%clk 0:02:41]} 12. Nb3 {[%clk 0:02:41]}  a5 {[%clk 0:02:35]} 13. a4 {[%clk 0:02:38]}  Nb6 {[%clk 0:02:29]} 14. Be2 {[%clk 0:02:35]}  Qxd1 {[%clk 0:02:26]} 15. Bxd1 {[%clk 0:02:36]}  Rfd8 {[%clk 0:02:24]} 16. Nfd4 {[%clk 0:02:31]}  Nb8 {[%clk 0:02:11]} 17. Be2 {[%clk 0:02:19]}  c6 {[%clk 0:02:09]} 18. Bf4 {[%clk 0:02:15]}  N8d7 {[%clk 0:02:07]} 19. Bg3 {[%clk 0:02:08]}  Nc5 {[%clk 0:02:01]} 20. Red1 {[%clk 0:01:43]}  Nxb3 {[%clk 0:01:59]} 21. Nxb3 {[%clk 0:01:43]}  Bc2 {[%clk 0:01:58]} 22. Rxd8+ {[%clk 0:01:43]}  Rxd8 {[%clk 0:01:54]} 23. Nxa5 {[%clk 0:01:42]}  Rd2 {[%clk 0:01:47]} 24. Bf3 {[%clk 0:01:39]}  Bxa4 {[%clk 0:01:41]} 25. Nxb7 {[%clk 0:01:36]}  Rxb2 {[%clk 0:01:36]} 26. Nd6 {[%clk 0:01:33]}  f5 {[%clk 0:01:30]} 27. exf6 {[%clk 0:01:26]}  gxf6 {[%clk 0:01:30]} 28. Nc4 {[%clk 0:01:21]}  Nxc4 {[%clk 0:01:26]} 29. Rxa4 {[%clk 0:01:21]}  Nd2 {[%clk 0:01:23]} 30. Ra8+ {[%clk 0:01:03]}  Kg7 {[%clk 0:01:20]} 31. h4 {[%clk 0:00:47]}  Nxf3+ {[%clk 0:01:05]} 32. gxf3 {[%clk 0:00:48]}  e5 {[%clk 0:01:02]} 33. Ra7 {[%clk 0:00:46]}  Kf7 {[%clk 0:01:02]} 34. Rc7 {[%clk 0:00:46]}  c5 {[%clk 0:01:00]} 35. f4 {[%clk 0:00:45]}  exf4 {[%clk 0:00:57]} 36. Bxf4 {[%clk 0:00:46]}  Ke6 {[%clk 0:00:57]} 37. Be3 {[%clk 0:00:46]}  Rb5 {[%clk 0:00:55]} 38. c4 {[%clk 0:00:43]}  Ra5 {[%clk 0:00:55]} 39. h5 {[%clk 0:00:40]}  f5 {[%clk 0:00:34]} 40. h6 {[%clk 0:00:36]}  Kf6 {[%clk 0:00:31]} 41. Kg2 {[%clk 0:00:27]}  Ra6 {[%clk 0:00:25]} 42. Bxc5 {[%clk 0:00:20]}  Bxc5 {[%clk 0:00:25]} 43. Rxc5 {[%clk 0:00:21]}  Kg5 {[%clk 0:00:26]} 44. Kg3 {[%clk 0:00:17]}  Rxh6 {[%clk 0:00:24]} 45. f4+ {[%clk 0:00:17]}  Kh5 {[%clk 0:00:15]} 46. Rxf5+ {[%clk 0:00:17]}  Kg6 {[%clk 0:00:15]} 47. Rd5 {[%clk 0:00:11]}  Rh1 {[%clk 0:00:15]} 48. c5 {[%clk 0:00:08]}  Rc1 {[%clk 0:00:14]} 49. Kg4 {[%clk 0:00:06]}  Rg1+ {[%clk 0:00:14]} 50. Kf3 {[%clk 0:00:06]}  Rc1 {[%clk 0:00:14]} 51. Ke4 {[%clk 0:00:06]}  Re1+ {[%clk 0:00:14]} 52. Kd4 {[%clk 0:00:06]}  Rd1+ {[%clk 0:00:14]} 53. Kc4 {[%clk 0:00:06]}  Rf1 {[%clk 0:00:14]} 54. Rd4 {[%clk 0:00:06]}  h5 {[%clk 0:00:13]} 55. c6 {[%clk 0:00:06]}  Rc1+ {[%clk 0:00:13]} 56. Kd5 {[%clk 0:00:06]}  h4 {[%clk 0:00:13]} 57. f5+ {[%clk 0:00:05]}  Kg5 {[%clk 0:00:12]} 58. f6 {[%clk 0:00:06]}  h3 {[%clk 0:00:08]} 59. f7 {[%clk 0:00:06]}  h2 {[%clk 0:00:09]} 60. f8=Q {[%clk 0:00:04]}  h1=Q+ {[%clk 0:00:09]} 61. Ke5 {[%clk 0:00:05]}  Re1+ {[%clk 0:00:09]} 62. Kd6 {[%clk 0:00:04]}  Qh2+ {[%clk 0:00:08]} 63. Kd7 {[%clk 0:00:04]}  Qh7+ {[%clk 0:00:08]} 64. Kd6 {[%clk 0:00:03]}  Qg6+ {[%clk 0:00:07]} 65. Kd5 {[%clk 0:00:02]}  Qf5+ {[%clk 0:00:01]} 66. Qxf5+ {[%clk 0:00:03]}  Kxf5 {[%clk 0:00:02]} 67. c7 {[%clk 0:00:03]}  Re5+ {[%clk 0:00:02]} 68. Kc6 {[%clk 0:00:04]}  Re8 {[%clk 0:00:02]} 69. Rd8 {[%clk 0:00:04]}  Re1 {[%clk 0:00:03]} 70. c8=Q+ {[%clk 0:00:04]} 1-0


[Site "https://www.chess.com"]

[Event "Titled Tuesday Blitz January 31 Late 2023"]
[White "Hambleton, Aman"]
[Black "Hirneise, Jens"]
[WhiteFideId "2606577"]
[BlackFideId "24614734"]
[WhiteElo "2420"]
[BlackElo "2277"]
[Result "1-0"]
[Round "09"]
[TimeControl "180+2"]
[Date "2023.01.31"]
[WhiteClock "0:00:08"]
[BlackClock "0:00:11"]

1. d4 {[%clk 0:03:00]}  d5 {[%clk 0:02:56]} 2. Bf4 {[%clk 0:03:01]}  Nf6 {[%clk 0:02:54]} 3. e3 {[%clk 0:02:59]}  Nbd7 {[%clk 0:02:44]} 4. Nf3 {[%clk 0:02:58]}  e6 {[%clk 0:02:41]} 5. Nbd2 {[%clk 0:02:58]}  Bd6 {[%clk 0:02:41]} 6. Bd3 {[%clk 0:02:58]}  Bxf4 {[%clk 0:02:38]} 7. exf4 {[%clk 0:02:59]}  c5 {[%clk 0:02:36]} 8. c3 {[%clk 0:02:59]}  cxd4 {[%clk 0:02:34]} 9. Nxd4 {[%clk 0:03:00]}  Nc5 {[%clk 0:02:28]} 10. Bc2 {[%clk 0:02:57]}  Bd7 {[%clk 0:02:23]} 11. O-O {[%clk 0:02:57]}  Qc7 {[%clk 0:02:22]} 12. g3 {[%clk 0:02:57]}  h5 {[%clk 0:02:22]} 13. h4 {[%clk 0:02:57]}  g6 {[%clk 0:02:11]} 14. Re1 {[%clk 0:02:57]}  O-O {[%clk 0:02:04]} 15. Qe2 {[%clk 0:02:52]}  Rfe8 {[%clk 0:01:56]} 16. N2f3 {[%clk 0:02:52]}  Nce4 {[%clk 0:01:49]} 17. Ne5 {[%clk 0:02:52]}  Rab8 {[%clk 0:01:35]} 18. Bd3 {[%clk 0:02:52]}  a6 {[%clk 0:01:35]} 19. a3 {[%clk 0:02:52]}  b5 {[%clk 0:01:34]} 20. Kg2 {[%clk 0:02:53]}  Nc5 {[%clk 0:01:30]} 21. Bc2 {[%clk 0:02:53]}  a5 {[%clk 0:01:28]} 22. Rac1 {[%clk 0:02:52]}  Qb7 {[%clk 0:01:25]} 23. b4 {[%clk 0:02:51]}  axb4 {[%clk 0:01:24]} 24. axb4 {[%clk 0:02:52]}  Nce4 {[%clk 0:01:24]} 25. Bd3 {[%clk 0:02:50]}  Nd6 {[%clk 0:01:20]} 26. Ra1 {[%clk 0:02:16]}  Ra8 {[%clk 0:01:16]} 27. f3 {[%clk 0:02:14]}  Rxa1 {[%clk 0:01:14]} 28. Rxa1 {[%clk 0:02:15]}  Nc4 {[%clk 0:01:09]} 29. Qa2 {[%clk 0:01:58]}  Rc8 {[%clk 0:00:57]} 30. Qa7 {[%clk 0:01:50]}  Rb8 {[%clk 0:00:52]} 31. Nxc4 {[%clk 0:01:22]}  dxc4 {[%clk 0:00:48]} 32. Qxb7 {[%clk 0:01:23]}  Rxb7 {[%clk 0:00:48]} 33. Be4 {[%clk 0:01:23]}  Rb6 {[%clk 0:00:42]} 34. Ra7 {[%clk 0:01:08]}  Rd6 {[%clk 0:00:41]} 35. Kf2 {[%clk 0:01:04]}  Nd5 {[%clk 0:00:37]} 36. Bxd5 {[%clk 0:01:02]}  Rxd5 {[%clk 0:00:38]} 37. Ke3 {[%clk 0:00:50]}  Kg7 {[%clk 0:00:38]} 38. Rc7 {[%clk 0:00:47]}  Rd6 {[%clk 0:00:32]} 39. Rc5 {[%clk 0:00:25]}  Kf6 {[%clk 0:00:30]} 40. g4 {[%clk 0:00:17]}  hxg4 {[%clk 0:00:28]} 41. fxg4 {[%clk 0:00:18]}  Rb6 {[%clk 0:00:29]} 42. g5+ {[%clk 0:00:05]}  Ke7 {[%clk 0:00:26]} 43. Rc7 {[%clk 0:00:06]}  Ra6 {[%clk 0:00:20]} 44. Nxb5 {[%clk 0:00:02]}  Kd8 {[%clk 0:00:19]} 45. Rb7 {[%clk 0:00:03]}  Ra2 {[%clk 0:00:14]} 46. Nd6 {[%clk 0:00:02]}  Rh2 {[%clk 0:00:13]} 47. Nxf7+ {[%clk 0:00:02]}  Kc8 {[%clk 0:00:12]} 48. Ra7 {[%clk 0:00:02]}  Bc6 {[%clk 0:00:10]} 49. Ne5 {[%clk 0:00:02]}  Bd5 {[%clk 0:00:10]} 50. Kd4 {[%clk 0:00:02]}  Rxh4 {[%clk 0:00:10]} 51. Nxg6 {[%clk 0:00:03]}  Rh3 {[%clk 0:00:09]} 52. Ne7+ {[%clk 0:00:03]}  Kb8 {[%clk 0:00:09]} 53. Rd7 {[%clk 0:00:02]}  Rd3+ {[%clk 0:00:09]} 54. Ke5 {[%clk 0:00:02]}  Rxc3 {[%clk 0:00:10]} 55. Nxd5 {[%clk 0:00:03]}  exd5 {[%clk 0:00:10]} 56. Rxd5 {[%clk 0:00:04]}  Rb3 {[%clk 0:00:10]} 57. b5 {[%clk 0:00:04]}  Kb7 {[%clk 0:00:10]} 58. g6 {[%clk 0:00:04]}  Kb6 {[%clk 0:00:10]} 59. Kf6 {[%clk 0:00:03]}  Rf3 {[%clk 0:00:09]} 60. f5 {[%clk 0:00:02]}  c3 {[%clk 0:00:10]} 61. Rd1 {[%clk 0:00:02]}  Kxb5 {[%clk 0:00:10]} 62. g7 {[%clk 0:00:02]}  Rg3 {[%clk 0:00:10]} 63. Kf7 {[%clk 0:00:03]}  Kc4 {[%clk 0:00:10]} 64. Rc1 {[%clk 0:00:03]}  Kb3 {[%clk 0:00:11]} 65. f6 {[%clk 0:00:04]}  c2 {[%clk 0:00:11]} 66. g8=Q {[%clk 0:00:04]}  Rxg8 {[%clk 0:00:10]} 67. Kxg8 {[%clk 0:00:05]}  Kb2 {[%clk 0:00:11]} 68. Rxc2+ {[%clk 0:00:06]}  Kxc2 {[%clk 0:00:11]} 69. f7 {[%clk 0:00:07]}  Kd3 {[%clk 0:00:11]} 70. f8=Q {[%clk 0:00:08]} 1-0


[Site "https://www.chess.com"]

[Event "Titled Tuesday Blitz January 31 Late 2023"]
[White "Real_OceanStorm"]
[Black "Defend, Balint"]
[BlackFideId "17004853"]
[WhiteElo "2671"]
[BlackElo "1673"]
[Result "1/2-1/2"]
[Round "09"]
[TimeControl "180+2"]
[Date "2023.01.31"]
[WhiteClock "0:00:08"]
[BlackClock "0:00:08"]

1. Nf3 {[%clk 0:03:00]}  Nf6 {[%clk 0:02:59]} 2. b3 {[%clk 0:03:01]}  e6 {[%clk 0:02:57]} 3. Bb2 {[%clk 0:03:02]}  c5 {[%clk 0:02:58]} 4. e3 {[%clk 0:03:02]}  b6 {[%clk 0:02:58]} 5. g3 {[%clk 0:03:03]}  Bb7 {[%clk 0:02:59]} 6. Bg2 {[%clk 0:03:03]}  d5 {[%clk 0:02:59]} 7. O-O {[%clk 0:03:04]}  Nc6 {[%clk 0:02:57]} 8. d4 {[%clk 0:03:04]}  Be7 {[%clk 0:02:57]} 9. Ne5 {[%clk 0:03:04]}  O-O {[%clk 0:02:55]} 10. c4 {[%clk 0:03:03]}  cxd4 {[%clk 0:02:50]} 11. exd4 {[%clk 0:03:03]}  Rc8 {[%clk 0:02:44]} 12. Nc3 {[%clk 0:02:44]}  dxc4 {[%clk 0:02:41]} 13. Nxc4 {[%clk 0:02:44]}  Qd7 {[%clk 0:02:11]} 14. d5 {[%clk 0:01:47]}  exd5 {[%clk 0:02:11]} 15. Nxd5 {[%clk 0:01:48]}  Nxd5 {[%clk 0:02:11]} 16. Qxd5 {[%clk 0:01:47]}  Qxd5 {[%clk 0:01:58]} 17. Bxd5 {[%clk 0:01:48]}  Na5 {[%clk 0:01:49]} 18. Bxb7 {[%clk 0:01:44]}  Nxb7 {[%clk 0:01:49]} 19. Rad1 {[%clk 0:01:40]}  Rfd8 {[%clk 0:01:45]} 20. Ne3 {[%clk 0:01:28]}  Bc5 {[%clk 0:01:25]} 21. Nd5 {[%clk 0:01:06]}  f6 {[%clk 0:01:16]} 22. Kg2 {[%clk 0:01:04]}  Kf7 {[%clk 0:01:16]} 23. Rfe1 {[%clk 0:00:53]}  Bf8 {[%clk 0:01:13]} 24. Re2 {[%clk 0:00:52]}  Rd7 {[%clk 0:01:01]} 25. Red2 {[%clk 0:00:52]}  Nc5 {[%clk 0:00:54]} 26. f3 {[%clk 0:00:39]}  Rcd8 {[%clk 0:00:49]} 27. Ba1 {[%clk 0:00:39]}  Na6 {[%clk 0:00:45]} 28. Bc3 {[%clk 0:00:37]}  Nb8 {[%clk 0:00:33]} 29. h3 {[%clk 0:00:19]}  Nc6 {[%clk 0:00:34]} 30. h4 {[%clk 0:00:19]}  Ne7 {[%clk 0:00:33]} 31. Ne3 {[%clk 0:00:19]}  Rxd2+ {[%clk 0:00:33]} 32. Rxd2 {[%clk 0:00:20]}  Rxd2+ {[%clk 0:00:33]} 33. Bxd2 {[%clk 0:00:21]}  Ke6 {[%clk 0:00:33]} 34. Bb4 {[%clk 0:00:21]}  Kf7 {[%clk 0:00:25]} 35. f4 {[%clk 0:00:20]}  Nc6 {[%clk 0:00:19]} 36. Bxf8 {[%clk 0:00:19]}  Kxf8 {[%clk 0:00:20]} 37. g4 {[%clk 0:00:12]}  Kf7 {[%clk 0:00:19]} 38. Kf3 {[%clk 0:00:13]}  Ke6 {[%clk 0:00:14]} 39. Ke4 {[%clk 0:00:13]}  b5 {[%clk 0:00:11]} 40. f5+ {[%clk 0:00:12]}  Kd6 {[%clk 0:00:11]} 41. g5 {[%clk 0:00:12]}  Nb4 {[%clk 0:00:09]} 42. Ng4 {[%clk 0:00:07]}  fxg5 {[%clk 0:00:08]} 43. a3 {[%clk 0:00:07]}  Nc2 {[%clk 0:00:08]} 44. hxg5 {[%clk 0:00:07]}  Nxa3 {[%clk 0:00:08]} 45. f6 {[%clk 0:00:08]}  gxf6 {[%clk 0:00:08]} 46. Nxf6 {[%clk 0:00:08]}  Ke6 {[%clk 0:00:08]} 47. Nxh7 {[%clk 0:00:08]}  a5 {[%clk 0:00:08]} 48. g6 {[%clk 0:00:09]}  a4 {[%clk 0:00:08]} 49. bxa4 {[%clk 0:00:09]}  bxa4 {[%clk 0:00:09]} 50. Kd4 {[%clk 0:00:09]}  Nb5+ {[%clk 0:00:10]} 51. Kc5 {[%clk 0:00:10]}  Nc7 {[%clk 0:00:09]} 52. Kc4 {[%clk 0:00:10]}  Ne8 {[%clk 0:00:09]} 53. Kb4 {[%clk 0:00:10]}  Kf5 {[%clk 0:00:09]} 54. Kxa4 {[%clk 0:00:08]}  Kxg6 {[%clk 0:00:08]} 1/2-1/2


[Site "https://www.chess.com"]

[Event "Titled Tuesday Blitz January 31 Late 2023"]
[White "Golubev, Mikhail"]
[Black "Leiva, Gianmarco"]
[WhiteFideId "14100983"]
[BlackFideId "3804399"]
[WhiteElo "2461"]
[BlackElo "2392"]
[Result "1-0"]
[Round "09"]
[TimeControl "180+2"]
[Date "2023.01.31"]
[WhiteClock "0:00:07"]
[BlackClock "0:00:20"]

1. e4 {[%clk 0:02:56]}  c5 {[%clk 0:02:55]} 2. Nf3 {[%clk 0:02:56]}  d6 {[%clk 0:02:54]} 3. d4 {[%clk 0:02:55]}  cxd4 {[%clk 0:02:54]} 4. Nxd4 {[%clk 0:02:56]}  Nf6 {[%clk 0:02:54]} 5. Nc3 {[%clk 0:02:56]}  a6 {[%clk 0:02:54]} 6. Bc4 {[%clk 0:02:56]}  e6 {[%clk 0:02:54]} 7. Bb3 {[%clk 0:02:56]}  b5 {[%clk 0:02:54]} 8. O-O {[%clk 0:02:55]}  Be7 {[%clk 0:02:47]} 9. Qf3 {[%clk 0:02:54]}  Qb6 {[%clk 0:02:46]} 10. Be3 {[%clk 0:02:53]}  Qb7 {[%clk 0:02:46]} 11. Qg3 {[%clk 0:02:54]}  Nbd7 {[%clk 0:02:33]} 12. Rad1 {[%clk 0:02:50]}  b4 {[%clk 0:02:28]} 13. Nf5 {[%clk 0:02:37]}  bxc3 {[%clk 0:01:56]} 14. Nxe7 {[%clk 0:02:36]}  Kxe7 {[%clk 0:01:54]} 15. Qxd6+ {[%clk 0:02:35]}  Ke8 {[%clk 0:01:52]} 16. Bc5 {[%clk 0:02:27]}  Kd8 {[%clk 0:01:31]} 17. Ba4 {[%clk 0:01:55]}  Nxe4 {[%clk 0:01:29]} 18. Qe7+ {[%clk 0:01:39]}  Kc7 {[%clk 0:01:29]} 19. Bxd7 {[%clk 0:01:15]}  Kb8 {[%clk 0:01:15]} 20. bxc3 {[%clk 0:00:51]}  Nxc5 {[%clk 0:01:12]} 21. Rb1 {[%clk 0:00:34]}  Nxd7 {[%clk 0:01:07]} 22. Qd6+ {[%clk 0:00:33]}  Ka7 {[%clk 0:00:57]} 23. Rxb7+ {[%clk 0:00:33]}  Bxb7 {[%clk 0:00:58]} 24. Qxd7 {[%clk 0:00:33]}  Rhd8 {[%clk 0:00:54]} 25. Qe7 {[%clk 0:00:29]}  Rd5 {[%clk 0:00:47]} 26. Rb1 {[%clk 0:00:25]}  Rb5 {[%clk 0:00:44]} 27. Rxb5 {[%clk 0:00:23]}  axb5 {[%clk 0:00:45]} 28. Qxf7 {[%clk 0:00:20]}  Rd8 {[%clk 0:00:44]} 29. h3 {[%clk 0:00:19]}  Rd1+ {[%clk 0:00:41]} 30. Kh2 {[%clk 0:00:19]}  Rd2 {[%clk 0:00:42]} 31. Qxg7 {[%clk 0:00:19]}  Rxc2 {[%clk 0:00:40]} 32. Qd4+ {[%clk 0:00:18]}  Ka8 {[%clk 0:00:38]} 33. Qd8+ {[%clk 0:00:16]}  Ka7 {[%clk 0:00:39]} 34. Qd4+ {[%clk 0:00:15]}  Ka8 {[%clk 0:00:37]} 35. a4 {[%clk 0:00:12]}  e5 {[%clk 0:00:23]} 36. Qd8+ {[%clk 0:00:11]}  Ka7 {[%clk 0:00:24]} 37. a5 {[%clk 0:00:11]}  Rxc3 {[%clk 0:00:21]} 38. Qb6+ {[%clk 0:00:11]}  Ka8 {[%clk 0:00:21]} 39. a6 {[%clk 0:00:10]}  Bc6 {[%clk 0:00:22]} 40. Qc7 {[%clk 0:00:07]}  Rc4 {[%clk 0:00:20]} 41. a7 {[%clk 0:00:06]}  Bb7 {[%clk 0:00:20]} 42. Qb8# {[%clk 0:00:07]} 1-0


[Site "https://www.chess.com"]

[Event "Titled Tuesday Blitz January 31 Late 2023"]
[White "Blomqvist, Erik"]
[Black "Hernandez Sanchez, Elvis De La Caridad"]
[WhiteFideId "1709437"]
[BlackFideId "6400353"]
[WhiteElo "2523"]
[BlackElo "2243"]
[Result "0-1"]
[Round "09"]
[TimeControl "180+2"]
[Date "2023.01.31"]
[WhiteClock "0:00:04"]
[BlackClock "0:00:38"]

1. e4 {[%clk 0:03:00]}  c5 {[%clk 0:02:59]} 2. Nf3 {[%clk 0:03:00]}  d6 {[%clk 0:02:59]} 3. d4 {[%clk 0:03:01]}  cxd4 {[%clk 0:03:00]} 4. Nxd4 {[%clk 0:03:01]}  Nf6 {[%clk 0:03:01]} 5. Nc3 {[%clk 0:03:01]}  g6 {[%clk 0:03:01]} 6. Be3 {[%clk 0:02:50]}  Bg7 {[%clk 0:02:58]} 7. f3 {[%clk 0:02:51]}  O-O {[%clk 0:02:57]} 8. Qd2 {[%clk 0:02:51]}  Nc6 {[%clk 0:02:57]} 9. O-O-O {[%clk 0:02:51]}  d5 {[%clk 0:02:57]} 10. exd5 {[%clk 0:02:51]}  Nxd5 {[%clk 0:02:58]} 11. Nxc6 {[%clk 0:02:51]}  bxc6 {[%clk 0:02:59]} 12. Bd4 {[%clk 0:02:51]}  Nxc3 {[%clk 0:02:58]} 13. Qxc3 {[%clk 0:02:51]}  Bh6+ {[%clk 0:02:58]} 14. Be3 {[%clk 0:02:52]}  Bxe3+ {[%clk 0:02:58]} 15. Qxe3 {[%clk 0:02:53]}  Qb6 {[%clk 0:02:58]} 16. Qe5 {[%clk 0:02:42]}  Be6 {[%clk 0:02:50]} 17. a3 {[%clk 0:02:36]}  Rfd8 {[%clk 0:02:46]} 18. Bd3 {[%clk 0:02:32]}  Rd5 {[%clk 0:02:41]} 19. Qc3 {[%clk 0:02:30]}  Rc5 {[%clk 0:02:32]} 20. Qb4 {[%clk 0:02:30]}  Qxb4 {[%clk 0:02:26]} 21. axb4 {[%clk 0:02:31]}  Rg5 {[%clk 0:02:26]} 22. Rd2 {[%clk 0:02:19]}  Rb8 {[%clk 0:02:24]} 23. f4 {[%clk 0:02:18]}  Rd5 {[%clk 0:02:18]} 24. c3 {[%clk 0:02:13]}  a5 {[%clk 0:02:17]} 25. Be4 {[%clk 0:01:42]}  Rxd2 {[%clk 0:02:13]} 26. Kxd2 {[%clk 0:01:43]}  axb4 {[%clk 0:02:13]} 27. Bxc6 {[%clk 0:01:44]}  bxc3+ {[%clk 0:02:11]} 28. bxc3 {[%clk 0:01:45]}  Rd8+ {[%clk 0:02:00]} 29. Kc2 {[%clk 0:01:45]}  Bf5+ {[%clk 0:01:59]} 30. Kb3 {[%clk 0:01:45]}  Rb8+ {[%clk 0:01:59]} 31. Kc4 {[%clk 0:01:41]}  Rc8 {[%clk 0:01:49]} 32. Kb5 {[%clk 0:01:40]}  Bd3+ {[%clk 0:01:46]} 33. Kb6 {[%clk 0:01:39]}  Rb8+ {[%clk 0:01:38]} 34. Kc7 {[%clk 0:01:30]}  Rb2 {[%clk 0:01:28]} 35. Rd1 {[%clk 0:01:22]}  Bc4 {[%clk 0:01:13]} 36. Rd4 {[%clk 0:01:15]}  Bf1 {[%clk 0:01:13]} 37. c4 {[%clk 0:01:09]}  Rc2 {[%clk 0:01:00]} 38. Kd7 {[%clk 0:00:34]}  Kf8 {[%clk 0:00:42]} 39. g3 {[%clk 0:00:11]}  Bxc4 {[%clk 0:00:40]} 40. Be4 {[%clk 0:00:04]}  Be6+ {[%clk 0:00:38]} 0-1


[Site "https://www.chess.com"]

[Event "Titled Tuesday Blitz January 31 Late 2023"]
[White "Klose, Eli"]
[Black "Andreassen, Lars"]
[WhiteFideId "16242955"]
[BlackFideId "1504878"]
[WhiteElo "1519"]
[BlackElo "2168"]
[Result "1-0"]
[Round "09"]
[TimeControl "180+2"]
[Date "2023.01.31"]
[WhiteClock "0:02:06"]
[BlackClock "0:01:17"]

1. e4 {[%clk 0:02:56]}  d5 {[%clk 0:02:59]} 2. exd5 {[%clk 0:02:56]}  Nf6 {[%clk 0:03:00]} 3. Nc3 {[%clk 0:02:57]}  Nxd5 {[%clk 0:03:00]} 4. Nxd5 {[%clk 0:02:53]}  Qxd5 {[%clk 0:03:01]} 5. Nf3 {[%clk 0:02:54]}  Bg4 {[%clk 0:03:01]} 6. Be2 {[%clk 0:02:54]}  Nc6 {[%clk 0:03:00]} 7. O-O {[%clk 0:02:54]}  e5 {[%clk 0:03:00]} 8. h3 {[%clk 0:02:54]}  Bh5 {[%clk 0:03:00]} 9. d3 {[%clk 0:02:50]}  Bd6 {[%clk 0:02:52]} 10. Re1 {[%clk 0:02:50]}  O-O {[%clk 0:02:52]} 11. Be3 {[%clk 0:02:46]}  f5 {[%clk 0:02:51]} 12. b3 {[%clk 0:02:41]}  f4 {[%clk 0:02:46]} 13. Bc1 {[%clk 0:02:36]}  h6 {[%clk 0:02:20]} 14. Bb2 {[%clk 0:02:35]}  Rae8 {[%clk 0:02:19]} 15. d4 {[%clk 0:02:35]}  Kh8 {[%clk 0:02:10]} 16. dxe5 {[%clk 0:02:35]}  Qxd1 {[%clk 0:02:10]} 17. Raxd1 {[%clk 0:02:36]}  Bxf3 {[%clk 0:02:04]} 18. Bxf3 {[%clk 0:02:30]}  Nxe5 {[%clk 0:02:03]} 19. Bxb7 {[%clk 0:02:27]}  Re7 {[%clk 0:01:52]} 20. Kf1 {[%clk 0:02:19]}  f3 {[%clk 0:01:41]} 21. g3 {[%clk 0:02:18]}  Rfe8 {[%clk 0:01:33]} 22. Re3 {[%clk 0:02:12]}  Bc5 {[%clk 0:01:21]} 23. Rxe5 {[%clk 0:02:10]}  Rxe5 {[%clk 0:01:21]} 24. Bxe5 {[%clk 0:02:11]}  Rxe5 {[%clk 0:01:21]} 25. Bxf3 {[%clk 0:02:11]}  Rf5 {[%clk 0:01:21]} 26. Kg2 {[%clk 0:02:10]}  g5 {[%clk 0:01:19]} 27. Rd2 {[%clk 0:02:08]}  h5 {[%clk 0:01:17]} 28. Bxh5 {[%clk 0:02:06]} 1-0


[Site "https://www.chess.com"]

[Event "Titled Tuesday Blitz January 31 Late 2023"]
[White "Papayan, Oleg"]
[Black "Sanchez, Sebastian Felipe"]
[WhiteFideId "4193911"]
[BlackFideId "4403304"]
[WhiteElo "2253"]
[BlackElo "2427"]
[Result "0-1"]
[Round "09"]
[TimeControl "180+2"]
[Date "2023.01.31"]
[WhiteClock "0:00:03"]
[BlackClock "0:01:20"]

1. d4 {[%clk 0:02:56]}  Nf6 {[%clk 0:02:59]} 2. Nf3 {[%clk 0:02:56]}  d5 {[%clk 0:02:58]} 3. c3 {[%clk 0:02:55]}  Bf5 {[%clk 0:02:54]} 4. Qb3 {[%clk 0:02:55]}  Qc8 {[%clk 0:02:52]} 5. c4 {[%clk 0:02:56]}  dxc4 {[%clk 0:02:49]} 6. Qxc4 {[%clk 0:02:57]}  e6 {[%clk 0:02:49]} 7. Bf4 {[%clk 0:02:46]}  Nbd7 {[%clk 0:02:42]} 8. Nbd2 {[%clk 0:02:27]}  Bd6 {[%clk 0:02:39]} 9. Bxd6 {[%clk 0:02:03]}  cxd6 {[%clk 0:02:37]} 10. Rc1 {[%clk 0:02:03]}  Qxc4 {[%clk 0:02:36]} 11. Nxc4 {[%clk 0:02:04]}  Ke7 {[%clk 0:02:36]} 12. e3 {[%clk 0:01:39]}  Rhc8 {[%clk 0:02:33]} 13. Rd1 {[%clk 0:01:21]}  Nb6 {[%clk 0:02:16]} 14. b3 {[%clk 0:00:57]}  Nbd5 {[%clk 0:02:11]} 15. Be2 {[%clk 0:00:38]}  Nc3 {[%clk 0:02:09]} 16. Ra1 {[%clk 0:00:32]}  b5 {[%clk 0:01:41]} 17. Na3 {[%clk 0:00:20]}  a6 {[%clk 0:01:35]} 18. Nd2 {[%clk 0:00:14]}  d5 {[%clk 0:01:25]} 19. Bf3 {[%clk 0:00:03]}  b4 {[%clk 0:01:23]} 20. Nab1 {[%clk 0:00:03]}  Nxb1 {[%clk 0:01:20]} 21. Nxb1 {[%clk 0:00:03]}  Rc1+ {[%clk 0:01:20]} 0-1


[Site "https://www.chess.com"]

[Event "Titled Tuesday Blitz January 31 Late 2023"]
[White "Kochetov, Andrey"]
[Black "Blit, Jacques"]
[WhiteFideId "24130532"]
[BlackFideId "114839"]
[WhiteElo "2165"]
[BlackElo "2309"]
[Result "0-1"]
[Round "09"]
[TimeControl "180+2"]
[Date "2023.01.31"]
[WhiteClock "0:00:01"]
[BlackClock "0:00:15"]

1. e4 {[%clk 0:03:00]}  c5 {[%clk 0:02:59]} 2. Nf3 {[%clk 0:03:00]}  a6 {[%clk 0:02:59]} 3. c4 {[%clk 0:03:00]}  d6 {[%clk 0:02:59]} 4. Nc3 {[%clk 0:03:00]}  e5 {[%clk 0:02:58]} 5. g3 {[%clk 0:02:48]}  Nc6 {[%clk 0:02:58]} 6. Bg2 {[%clk 0:02:48]}  g6 {[%clk 0:02:58]} 7. O-O {[%clk 0:02:49]}  Bg7 {[%clk 0:02:58]} 8. h3 {[%clk 0:02:49]}  Nge7 {[%clk 0:02:59]} 9. d3 {[%clk 0:02:50]}  O-O {[%clk 0:02:59]} 10. Rb1 {[%clk 0:02:50]}  f5 {[%clk 0:02:58]} 11. Ne1 {[%clk 0:02:49]}  f4 {[%clk 0:02:57]} 12. g4 {[%clk 0:02:48]}  Nd4 {[%clk 0:02:55]} 13. f3 {[%clk 0:02:45]}  h5 {[%clk 0:02:55]} 14. Nc2 {[%clk 0:02:44]}  hxg4 {[%clk 0:02:53]} 15. hxg4 {[%clk 0:02:44]}  Nec6 {[%clk 0:02:52]} 16. Nd5 {[%clk 0:02:40]}  Qh4 {[%clk 0:02:44]} 17. Bd2 {[%clk 0:02:34]}  Kf7 {[%clk 0:02:34]} 18. b4 {[%clk 0:02:28]}  Rh8 {[%clk 0:02:33]} 19. Be1 {[%clk 0:02:16]}  Qh2+ {[%clk 0:02:20]} 20. Kf2 {[%clk 0:02:15]}  Nxc2 {[%clk 0:02:17]} 21. Qxc2 {[%clk 0:02:10]}  Nd4 {[%clk 0:02:17]} 22. Qd1 {[%clk 0:01:52]}  Bxg4 {[%clk 0:01:47]} 23. fxg4 {[%clk 0:01:13]}  f3 {[%clk 0:01:33]} 24. Rg1 {[%clk 0:01:02]}  Ke6 {[%clk 0:01:14]} 25. Bc3 {[%clk 0:00:34]}  fxg2 {[%clk 0:01:13]} 26. Bxd4 {[%clk 0:00:31]}  Raf8+ {[%clk 0:01:12]} 27. Ke2 {[%clk 0:00:29]}  cxd4 {[%clk 0:01:08]} 28. c5 {[%clk 0:00:24]}  Qg3 {[%clk 0:01:04]} 29. Qe1 {[%clk 0:00:12]}  Qf3+ {[%clk 0:00:48]} 30. Kd2 {[%clk 0:00:12]}  Bh6+ {[%clk 0:00:48]} 31. Kc2 {[%clk 0:00:11]}  Be3 {[%clk 0:00:32]} 32. b5 {[%clk 0:00:04]}  Bxg1 {[%clk 0:00:30]} 33. Qa5 {[%clk 0:00:03]}  Qe2+ {[%clk 0:00:28]} 34. Kb3 {[%clk 0:00:03]}  Qxd3+ {[%clk 0:00:27]} 35. Kb2 {[%clk 0:00:04]}  Rf1 {[%clk 0:00:17]} 36. Qc7 {[%clk 0:00:01]}  Rxb1# {[%clk 0:00:15]} 0-1


[Site "https://www.chess.com"]